bitfinex/quotes_ETHUSD_20220213
["timestamp","ask_amount","ask_price","bid_price","bid_amount"]
[1644743713515,0.4230104,2925.3,2925.0,0.9904031]
[1644743713714,0.528,2925.1,2925.0,0.9904031]
[1644743713914,0.4230104,2925.3,2925.0,0.9904031]
[1644743714114,0.528,2925.1,2925.0,0.9904031]
[1644743714517,0.7395052,2925.1,2925.0,0.9904031]
[1644743714716,0.94999456,2925.1,2925.0,0.9904031]
[1644743715416,0.9494104,2925.1,2925.0,0.9904031]
[1644743715616,2.40361129,2925.1,2925.0,0.9904031]
[1644743716062,2.40281129,2925.1,2925.0,0.9904031]
[1644743716463,0.4230104,2925.1,2925.0,0.9904031]
[1644743716661,0.9478104,2925.1,2925.0,1.8449431]
[1644743719266,0.9478104,2925.1,2925.0,5.08896795]
[1644743719465,0.9478104,2925.1,2925.0,5.08484109]
[1644743719710,0.9478104,2925.1,2925.0,6.42773238]
[1644743719914,0.01082192,2925.6,2925.0,6.92373238]
[1644743720213,0.01082192,2925.6,2925.1,2.15443]
[1644743720411,1.0,2925.4,2925.2,5.75467746]
[1644743720814,1.0,2925.4,2925.3,1.0]
[1644743722011,1.0,2925.4,2925.3,4.21396852]
[1644743723753,1.0,2925.4,2925.3,1.0]
[1644743723954,1.0,2925.4,2925.2,3.20484]
[1644743724860,1.0,2925.4,2925.2,1.496]
[1644743726266,1.0,2925.4,2925.2,4.69884055]
[1644743726562,1.0,2925.4,2925.2,1.496]
[1644743726761,1.0,2925.4,2925.2,4.69725272]
[1644743727617,1.0,2925.4,2925.2,1.496]
[1644743727818,1.0,2925.4,2925.2,4.69364824]
[1644743728419,1.0,2925.4,2925.2,1.496]
[1644743728820,0.01082249,2925.6,2925.2,1.496]
[1644743729121,1.0,2925.4,2925.2,1.796]
[1644743737511,1.0,2925.4,2925.3,3.24540881]
[1644743737713,1.0,2925.4,2925.2,1.796]
[1644743742918,0.9991712,2925.4,2925.2,1.796]
[1644743743521,0.9991712,2925.4,2925.2,3.50488]
[1644743743522,0.9984,2925.4,2925.2,3.50488]
[1644743744120,0.9984,2925.4,2925.3,3.20078947]
[1644743744322,0.9984,2925.4,2925.3,4.20078947]
[1644743744521,0.01082752,2925.6,2925.3,24.86888076]
[1644743744721,0.29999999,2925.8,2925.3,24.86888076]
[1644743744920,0.01082764,2925.6,2925.5,20.0]
[1644743745120,0.29999999,2925.8,2925.7,21.00132028]
[1644743745322,0.29999999,2925.8,2925.7,22.65159028]
[1644743745535,0.29999999,2925.8,2925.7,23.95159028]
[1644743748366,0.29999999,2925.8,2925.7,24.12368157]
[1644743749706,0.29999999,2925.8,2925.7,4.12368157]
[1644743749911,0.01082762,2925.9,2925.8,3.4]
[1644743750113,0.01082762,2925.9,2925.8,1.35026]
[1644743750307,0.01082762,2925.9,2925.8,2.65026]
[1644743750709,3.50381475,2926.7,2925.9,1.70851]
[1644743750911,0.01082747,2926.0,2925.9,3.20451]
[1644743751110,0.01082747,2926.0,2925.9,3.50451]
[1644743751315,0.01082747,2926.0,2925.9,3.80451]
[1644743751914,0.00381475,2926.6,2926.5,0.92301529]
[1644743752109,0.00661648,2926.1,2926.0,0.92799019]
[1644743752409,0.00661648,2926.1,2926.0,2.22799019]
[1644743753109,1.0,2926.2,2926.0,2.22799019]
[1644743753353,1.01083223,2926.2,2926.0,2.72399019]
[1644743754360,1.0,2926.2,2926.0,2.72399019]
[1644743754559,1.01083215,2926.2,2926.0,2.72399019]
[1644743754963,1.01083215,2926.2,2926.0,2.42399019]
[1644743755160,1.01083215,2926.2,2926.0,2.72399019]
[1644743755361,1.01083215,2926.2,2926.0,2.42399019]
[1644743755562,1.0,2926.2,2926.0,2.72399019]
[1644743755763,1.01083215,2926.2,2926.0,2.72399019]
[1644743756763,1.0,2926.2,2926.0,2.72399019]
[1644743756963,1.01083215,2926.2,2926.0,2.72399019]
[1644743758108,1.0,2926.2,2926.0,2.72399019]
[1644743758306,1.01083215,2926.2,2926.0,2.72399019]
[1644743759113,1.0,2926.2,2926.0,2.72399019]
[1644743759306,1.01083215,2926.2,2926.0,2.72399019]
[1644743760311,1.0,2926.2,2926.0,2.72399019]
[1644743760514,1.01083215,2926.2,2926.0,2.72399019]
[1644743761554,1.0,2926.2,2926.0,2.72399019]
[1644743761864,1.01083215,2926.2,2926.0,2.72399019]
[1644743762658,1.0,2926.2,2926.0,2.72399019]
[1644743763160,1.01083215,2926.2,2926.0,2.72399019]
[1644743763561,1.45376516,2926.1,2926.0,2.72399019]
[1644743764365,1.01083223,2926.2,2926.0,2.72399019]
[1644743765206,1.0,2926.2,2926.0,2.72399019]
[1644743765408,1.01083215,2926.2,2926.0,2.72399019]
[1644743766506,1.0,2926.2,2926.0,2.72399019]
[1644743766707,1.01083215,2926.2,2926.0,2.72399019]
[1644743768756,1.0,2926.2,2926.0,2.72399019]
[1644743768958,1.01046657,2926.2,2926.0,2.72399019]
[1644743769963,1.0,2926.2,2926.0,2.72399019]
[1644743770163,1.01046657,2926.2,2926.0,2.72399019]
[1644743770363,1.01046657,2926.2,2926.0,3.57826019]
[1644743771164,1.0,2926.2,2926.0,3.57826019]
[1644743771364,1.01046657,2926.2,2926.0,3.57826019]
[1644743772412,1.0,2926.2,2926.0,3.57826019]
[1644743772616,1.01035972,2926.2,2926.0,3.57826019]
[1644743773613,1.0,2926.2,2926.0,3.57826019]
[1644743773913,1.01035972,2926.2,2926.0,3.57826019]
[1644743774218,1.01035972,2926.2,2926.1,20.0]
[1644743774219,0.01035972,2926.2,2926.1,20.0]
[1644743774414,0.01035972,2926.2,2926.1,21.496]
[1644743774822,0.62760462,2926.4,2926.3,20.0]
[1644743775018,0.62760462,2926.4,2926.3,21.4394]
[1644743775217,1.168,2926.8,2926.4,2.7]
[1644743775417,1.45346588,2926.7,2926.5,2.35006]
[1644743775618,1.0,2926.7,2926.5,2.95006]
[1644743776458,1.1913,2927.3,2926.5,3.82728502]
[1644743776658,1.45344303,2927.0,2926.6,0.85401]
[1644743776859,1.45344303,2926.9,2926.6,1.35001]
[1644743777058,1.45344303,2926.8,2926.7,0.3]
[1644743777258,1.45344303,2927.2,2926.7,0.3]
[1644743777463,0.00658252,2926.9,2926.7,0.3]
[1644743777658,1.45344303,2926.8,2926.7,0.3]
[1644743777962,0.82164056,2927.5,2926.7,3.1569]
[1644743778162,3.5,2927.4,2926.9,0.85395]
[1644743778360,3.5,2927.4,2927.0,0.496]
[1644743778562,3.5,2927.4,2927.0,0.796]
[1644743778762,3.5,2927.4,2927.0,1.796]
[1644743778961,1.1831,2927.6,2927.0,1.796]
[1644743779161,4.15084056,2927.8,2927.3,0.79741189]
[1644743779364,0.45275054,2927.2,2927.0,3.50389]
[1644743780608,0.45275054,2927.2,2927.1,0.87722502]
[1644743781208,0.45275054,2927.2,2927.1,1.17722502]
[1644743784256,0.45275054,2927.2,2927.1,21.17722502]
[1644743784460,0.45275054,2927.2,2927.1,22.17722502]
[1644743785064,0.45275054,2927.2,2927.1,2.17722502]
[1644743785365,0.45275054,2927.2,2927.1,22.17722502]
[1644743786161,0.45275054,2927.2,2927.1,22.67322502]
[1644743786363,0.45275054,2927.2,2927.1,2.67322502]
[1644743786964,0.45275054,2927.2,2927.1,1.67322502]
[1644743787210,0.45275054,2927.2,2927.1,0.796]
[1644743790714,0.45657327,2927.2,2927.1,0.796]
[1644743790958,0.45657327,2927.2,2927.1,1.796]
[1644743791157,0.45657327,2927.2,2927.1,0.796]
[1644743791358,0.45657327,2927.2,2927.1,1.796]
[1644743793964,0.45657327,2927.2,2927.1,1.3]
[1644743794818,0.45657327,2927.2,2927.1,0.3]
[1644743795121,0.45657327,2927.2,2927.1,1.3]
[1644743795722,0.45657327,2927.2,2927.0,3.30789]
[1644743796019,0.45657327,2927.2,2927.1,1.0]
[1644743796318,0.45657327,2927.2,2927.0,2.30789]
[1644743796319,0.45657327,2927.2,2927.0,3.30789]
[1644743796523,0.45275054,2927.2,2927.0,3.30789]
[1644743796722,0.45657327,2927.2,2927.0,3.30789]
[1644743797722,0.46740398,2927.2,2927.0,3.30789]
[1644743798365,1.46740398,2927.2,2927.0,3.30789]
[1644743798562,1.46358125,2927.2,2927.0,3.30789]
[1644743798763,1.45275054,2927.2,2927.0,3.30789]
[1644743798968,1.46358125,2927.2,2927.0,3.30789]
[1644743799965,1.45275054,2927.2,2927.0,3.30789]
[1644743800165,1.46358125,2927.2,2927.0,3.30789]
[1644743801166,1.45275054,2927.2,2927.0,3.30789]
[1644743801464,1.46358125,2927.2,2927.0,3.30789]
[1644743802305,1.45275054,2927.2,2927.0,3.30789]
[1644743802506,1.46358125,2927.2,2927.0,3.30789]
[1644743802712,1.46358125,2927.2,2927.0,24.16178]
[1644743802713,1.46255002,2927.2,2927.0,24.16178]
[1644743802914,1.46255002,2927.2,2927.0,24.33387129]
[1644743803112,1.46255002,2927.2,2927.1,0.496]
[1644743803315,1.46255002,2927.2,2927.1,1.496]
[1644743803518,1.45171931,2927.2,2927.1,1.496]
[1644743810414,1.45171931,2927.2,2927.1,0.496]
[1644743810814,1.45171931,2927.2,2927.1,1.496]
[1644743812820,1.45171931,2927.2,2927.0,2.00789]
[1644743813017,1.45171931,2927.2,2926.9,0.85393]
[1644743813462,1.45331098,2927.1,2926.9,0.85393]
[1644743813664,1.45713371,2927.1,2926.9,0.85393]
[1644743814066,2.45553371,2927.1,2926.9,0.85393]
[1644743814366,1.00222273,2927.1,2927.0,0.3]
[1644743814564,2.46256521,2927.1,2927.0,0.3]
[1644743815568,2.46256521,2927.1,2926.5,1.95822]
[1644743815569,5.49319551,2927.1,2926.5,1.95822]
[1644743815770,5.49319551,2927.1,2926.6,0.01083293]
[1644743815771,4.49861824,2927.1,2926.6,0.01083293]
[1644743815976,0.9976,2926.8,2926.6,0.01083293]
[1644743816175,1.45333436,2926.7,2926.6,0.01083293]
[1644743816767,1.45333436,2926.7,2926.1,0.87722502]
[1644743816969,1.45333436,2926.7,2926.5,0.01083244]
[1644743817213,2.45093436,2926.7,2926.5,0.01083244]
[1644743817412,1.45333436,2926.6,2926.5,0.01083244]
[1644743817613,0.9976,2926.7,2926.5,0.01083244]
[1644743817810,4.08492458,2926.7,2926.5,0.01083244]
[1644743818011,1.45333436,2926.6,2926.2,0.85427]
[1644743818213,1.45333436,2926.6,2926.5,0.01083252]
[1644743819116,1.45333436,2926.6,2926.2,0.85427]
[1644743819313,1.45333436,2926.6,2926.4,0.01083259]
[1644743820316,1.45333436,2926.6,2926.2,1.85427]
[1644743820516,1.45333436,2926.6,2926.4,0.01083266]
[1644743820967,1.45333436,2926.5,2926.4,0.01083266]
[1644743821464,1.45333436,2926.5,2926.3,0.6]
[1644743821669,2.45093436,2926.5,2926.3,0.6]
[1644743821865,0.9976,2926.5,2926.3,0.61083274]
[1644743822665,0.9976,2926.5,2926.3,0.6]
[1644743823066,0.00382273,2926.8,2926.3,0.61083281]
[1644743823266,0.9976,2926.5,2926.4,0.85414]
[1644743823466,2.45116764,2926.5,2926.4,0.85414]
[1644743824068,0.9976,2926.5,2926.4,0.85414]
[1644743827123,0.9976,2926.5,2926.3,0.78163274]
[1644743827421,0.9976,2926.5,2926.3,0.01083274]
[1644743827623,3.11555649,2926.8,2926.2,1.02507]
[1644743827624,0.9976,2926.4,2926.2,1.02507]
[1644743827822,0.9976,2926.4,2926.3,0.01083281]
[1644743828022,2.45123604,2926.4,2926.3,0.01083281]
[1644743828664,2.45123604,2926.4,2926.3,0.31083281]
[1644743828864,0.9976,2926.4,2926.3,0.3]
[1644743831472,2.45127889,2926.4,2926.3,0.3]
[1644743831772,2.45127889,2926.4,2926.2,1.31083288]
[1644743832413,0.9976,2926.4,2926.2,1.3]
[1644743832614,0.9976,2926.4,2926.2,1.31083295]
[1644743832814,0.9976,2926.4,2926.2,1.30979503]
[1644743833012,0.9976,2926.4,2926.2,0.30979503]
[1644743833315,0.9976,2926.4,2926.2,0.01083295]
[1644743833614,3.1875983,2926.6,2926.0,0.1708]
[1644743833813,0.9976,2926.2,2926.0,0.1708]
[1644743834212,3.2802459,2926.6,2926.0,0.1708]
[1644743834414,0.9976,2926.2,2926.0,0.1708]
[1644743834816,0.9976,2926.2,2925.9,0.1708]
[1644743835030,0.9976,2926.2,2926.0,0.01083324]
[1644743836065,0.9976,2926.2,2925.9,2.02511]
[1644743836267,0.9976,2926.2,2926.0,0.01083324]
[1644743837277,0.9976,2926.2,2925.9,2.02511]
[1644743837474,2.14963227,2926.7,2926.0,0.01083324]
[1644743837673,0.9976,2926.2,2926.0,0.01083324]
[1644743838374,0.9976,2926.2,2925.9,1.34289129]
[1644743838573,0.9976,2926.2,2926.0,0.01083324]
[1644743839175,2.14963227,2926.7,2926.0,0.01083324]
[1644743839376,0.9976,2926.2,2926.0,0.01083324]
[1644743839621,0.9976,2926.1,2925.9,0.34289129]
[1644743839820,0.9976,2926.1,2925.9,1.34289129]
[1644743840217,0.9976,2926.1,2925.9,0.1708]
[1644743840420,0.9976,2926.1,2925.9,1.1708]
[1644743840617,2.14963227,2926.7,2925.9,1.02509]
[1644743840817,2.14963227,2926.7,2925.9,1.85429]
[1644743841019,0.9976,2926.1,2925.9,1.86512339]
[1644743841219,0.9976,2926.1,2925.9,2.03592339]
[1644743841818,2.14963227,2926.7,2925.9,0.18163339]
[1644743842020,0.9976,2926.1,2925.8,2.00863]
[1644743842220,0.9976,2926.1,2925.9,0.01083339]
[1644743843361,2.14963227,2926.7,2925.9,0.01083339]
[1644743843562,1.4537624,2926.6,2925.9,0.01083339]
[1644743843961,0.9976,2926.1,2925.9,0.01083339]
[1644743844363,0.9976,2926.1,2925.7,3.17945]
[1644743844667,0.9976,2926.1,2925.9,0.01083339]
[1644743845469,2.14963227,2926.7,2925.9,0.01083339]
[1644743845669,0.9976,2926.1,2925.7,3.35154129]
[1644743845869,1.45377487,2926.6,2925.9,0.01083339]
[1644743846069,0.9976,2926.1,2925.9,0.01083339]
[1644743846271,2.14963227,2926.7,2925.9,0.01083339]
[1644743846471,0.9976,2926.1,2925.9,0.01083339]
[1644743846871,0.9976,2926.1,2925.7,3.35154129]
[1644743847118,0.9976,2926.1,2925.9,0.01083339]
[1644743847911,0.9976,2926.1,2925.7,3.35154129]
[1644743848311,0.9976,2926.1,2925.9,0.01083339]
[1644743849011,2.14963227,2926.7,2925.9,0.01083339]
[1644743849214,0.9976,2926.1,2925.7,3.35154129]
[1644743849413,0.9976,2926.1,2925.9,0.01083339]
[1644743850118,2.14963227,2926.7,2925.9,0.01083339]
[1644743850323,0.9976,2926.1,2925.7,3.35154129]
[1644743850721,0.9976,2926.1,2925.9,0.01083339]
[1644743851564,0.9976,2926.1,2925.8,1.85432]
[1644743851765,2.14963227,2926.7,2925.9,0.86512339]
[1644743851966,0.9976,2926.0,2925.9,0.86512339]
[1644743852766,0.9976,2926.0,2925.9,0.85429]
[1644743854465,0.9976,2926.0,2925.8,2.16515346]
[1644743855118,0.9976,2926.0,2925.8,2.15432]
[1644743855319,0.9976,2926.0,2925.8,2.16515354]
[1644743856422,0.9976,2926.0,2925.8,2.15432]
[1644743856617,0.9976,2926.0,2925.8,2.16455978]
[1644743857219,0.9976,2926.0,2925.8,1.16455978]
[1644743857220,1.45380877,2925.9,2925.8,1.16455978]
[1644743857422,1.45380877,2925.9,2925.8,0.01023978]
[1644743857622,1.45380877,2925.9,2925.3,3.50333012]
[1644743857820,0.9976,2925.5,2925.3,0.00333012]
[1644743858222,0.9976,2925.1,2925.0,0.00333012]
[1644743858467,3.43984134,2926.2,2925.0,0.1708]
[1644743858468,8.2538819,2926.2,2925.0,0.1708]
[1644743858665,1.45404818,2926.1,2925.1,0.00333012]
[1644743858867,1.45404818,2926.1,2925.1,0.85793012]
[1644743859066,1.45404818,2926.1,2925.5,0.01024015]
[1644743859471,3.70620016,2926.0,2925.5,0.01024015]
[1644743859670,1.45404818,2925.9,2925.5,0.01024015]
[1644743859872,3.48039816,2925.8,2925.5,0.01024015]
[1644743860073,1.45404818,2925.7,2925.2,0.00333012]
[1644743860272,1.45404818,2925.7,2925.6,0.01024003]
[1644743861271,1.45404818,2925.7,2925.2,0.00333012]
[1644743861479,1.45404818,2925.6,2925.5,0.01028019]
[1644743861677,1.45404818,2925.8,2925.5,0.01028019]
[1644743861874,1.45404818,2925.7,2925.5,0.01028019]
[1644743862124,1.45401569,2925.6,2925.5,0.01028019]
[1644743862414,1.45401569,2925.6,2925.2,0.00333012]
[1644743862614,1.45401569,2925.6,2925.5,0.00963132]
[1644743863619,1.45401569,2925.6,2925.2,0.00333012]
[1644743863819,4.97940156,2925.6,2925.4,0.00963138]
[1644743864019,1.45284855,2925.5,2925.4,0.00963138]
[1644743864219,3.48997488,2925.6,2925.4,0.00963138]
[1644743864418,3.47700007,2925.6,2925.4,0.00963138]
[1644743864621,1.0,2925.7,2925.4,0.00963138]
[1644743864820,1.0,2925.7,2925.2,0.00333012]
[1644743865121,1.0,2925.7,2925.4,0.00966716]
[1644743865967,1.0,2925.7,2925.2,0.00333012]
[1644743866166,1.0,2925.7,2925.4,0.00966709]
[1644743867169,1.0,2925.7,2925.2,0.00333012]
[1644743868574,1.0,2925.7,2925.3,0.00373767]
[1644743869628,1.0,2925.7,2925.2,0.00333012]
[1644743869821,1.0,2925.7,2925.4,0.0037376]
[1644743870722,1.0,2925.7,2925.3,0.00333012]
[1644743871123,1.0,2925.7,2925.4,0.01031362]
[1644743871922,1.0,2925.7,2925.3,0.00333012]
[1644743872124,1.0,2925.7,2925.4,0.01051148]
[1644743873126,1.0,2925.7,2925.3,0.00333012]
[1644743873365,1.0,2925.7,2925.4,0.01051148]
[1644743874368,1.0,2925.7,2925.1,0.00333012]
[1644743874568,1.0,2925.7,2925.4,0.01051148]
[1644743875572,1.0,2925.7,2925.1,0.00333012]
[1644743875770,1.0,2925.7,2925.4,0.01027099]
[1644743875971,0.92192021,2925.5,2925.4,0.01027099]
[1644743876179,0.02054198,2925.3,2925.1,0.00333012]
[1644743876374,4.03556509,2925.3,2925.1,0.00333012]
[1644743877318,1.0,2925.2,2925.1,0.00333012]
[1644743877517,4.31033071,2925.2,2924.5,0.17413012]
[1644743877718,3.31033071,2925.2,2924.6,0.00333012]
[1644743877919,1.0,2924.8,2924.6,0.00333012]
[1644743878618,1.0,2924.8,2924.7,0.1708]
[1644743879018,1.0,2924.8,2924.3,0.17413012]
[1644743879218,3.26919961,2925.2,2924.3,0.47413012]
[1644743879219,1.0,2924.5,2924.3,0.47413012]
[1644743879420,1.0,2924.5,2924.4,0.17209129]
[1644743880863,1.0,2924.5,2924.4,0.34289129]
[1644743883272,1.0,2924.5,2924.4,0.29289129]
[1644743885926,1.0,2924.5,2924.4,0.1708]
[1644743886924,1.0,2924.5,2924.3,0.48496576]
[1644743887425,1.0,2924.5,2924.3,0.18496576]
[1644743887626,1.06384729,2925.1,2924.3,0.00333012]
[1644743887826,1.06384729,2925.1,2924.3,0.01083572]
[1644743887827,1.0,2924.5,2924.3,0.01083572]
[1644743888025,3.25023629,2924.4,2924.3,0.01083572]
[1644743888471,4.37801856,2924.4,2924.3,0.01083572]
[1644743888671,3.25023629,2924.4,2924.3,0.01083572]
[1644743888872,3.25023629,2924.4,2923.8,0.00333012]
[1644743889078,3.25023629,2924.4,2924.2,0.01083579]
[1644743889670,3.06504282,2924.4,2924.2,0.01083579]
[1644743890073,3.06504282,2924.4,2924.0,0.00333012]
[1644743890371,3.06504282,2924.4,2924.2,0.01083586]
[1644743891275,3.06504282,2924.4,2924.0,0.00333012]
[1644743891475,3.06504282,2924.4,2924.2,0.01083586]
[1644743892322,3.06504282,2924.4,2923.8,0.00333012]
[1644743892524,3.06504282,2924.4,2924.2,0.01083586]
[1644743893525,3.06504282,2924.4,2923.8,0.17413012]
[1644743893726,3.06504282,2924.4,2924.2,0.01083586]
[1644743893927,4.03317553,2924.5,2924.2,0.01083586]
[1644743894231,4.1316646,2924.5,2924.2,0.01083586]
[1644743894828,4.1316646,2924.5,2923.8,0.17413012]
[1644743895026,4.1316646,2924.5,2924.2,0.01083579]
[1644743895226,4.09699391,2924.5,2924.2,0.01083579]
[1644743896077,4.09699391,2924.5,2923.8,0.17413012]
[1644743896269,4.09699391,2924.5,2924.2,0.01083579]
[1644743897172,1.06627216,2924.1,2923.8,0.17413012]
[1644743897372,3.04776176,2924.0,2923.8,0.04667978]
[1644743897574,1.06627216,2924.1,2923.8,0.04667978]
[1644743898173,1.06627216,2924.1,2923.8,0.04334966]
[1644743898373,1.0,2923.9,2923.5,0.00333012]
[1644743898573,1.0,2923.7,2923.5,0.00333012]
[1644743899920,1.0,2923.7,2923.5,0.014167]
[1644743900520,0.98794356,2923.6,2923.5,0.014167]
[1644743900821,0.98794356,2923.6,2923.5,0.00333012]
[1644743901022,0.98794356,2923.6,2923.5,0.01083688]
[1644743901223,0.98794356,2923.6,2923.5,0.014167]
[1644743902027,0.98794356,2923.6,2923.5,0.00333012]
[1644743903471,4.18493226,2923.6,2923.5,0.00333012]
[1644743903670,0.98794356,2923.6,2923.4,0.31083695]
[1644743903870,0.98794356,2923.6,2923.4,0.01083695]
[1644743904469,0.98794356,2923.6,2923.3,0.00333012]
[1644743904674,0.98794356,2923.6,2923.4,0.01083703]
[1644743905272,1.0,2923.7,2923.4,0.01083703]
[1644743905771,1.0,2923.7,2923.3,0.00333012]
[1644743906071,1.0,2923.7,2923.4,0.01083695]
[1644743906872,1.0,2923.7,2923.3,0.00333012]
[1644743907120,1.0,2923.7,2923.4,0.01083695]
[1644743907922,1.0,2923.7,2923.3,0.00333012]
[1644743908324,1.0,2923.7,2923.4,0.01083695]
[1644743908524,3.04187078,2923.6,2923.4,0.01083695]
[1644743908723,1.0,2923.7,2923.4,0.01083695]
[1644743909125,1.0,2923.7,2923.3,0.17433012]
[1644743909526,1.0,2923.7,2923.4,0.01083695]
[1644743910031,1.0,2923.6,2923.4,0.01083695]
[1644743910230,1.0,2923.6,2923.5,0.496]
[1644743910630,1.0,2923.6,2923.5,0.49933012]
[1644743921577,1.0,2923.6,2923.5,0.67142141]
[1644743921781,0.171,2924.9,2923.8,0.85485]
[1644743921978,3.08965888,2925.0,2923.8,0.85485]
[1644743921979,1.45458661,2924.8,2923.9,0.496]
[1644743922222,4.51655242,2924.7,2923.9,0.49933012]
[1644743922420,1.0,2924.1,2923.9,1.49933012]
[1644743922623,1.0,2924.1,2923.9,1.496]
[1644743922828,1.0,2924.1,2923.9,1.49931544]
[1644743923925,1.0,2924.1,2923.9,1.51015174]
[1644743924827,1.0,2924.1,2923.9,1.49931544]
[1644743925025,1.0,2924.1,2923.9,1.51015174]
[1644743926070,1.0,2924.1,2923.9,1.49931544]
[1644743926372,0.1708,2925.0,2924.0,0.17209129]
[1644743926568,1.0,2924.2,2924.1,0.49931544]
[1644743926873,1.0,2924.2,2924.1,0.66809129]
[1644743930133,3.5,2925.0,2924.3,0.8547]
[1644743930325,3.5,2925.0,2924.5,0.85461]
[1644743930326,1.4544048,2924.9,2924.5,0.85461]
[1644743930527,1.4544048,2924.9,2924.6,0.496]
[1644743931123,1.4544048,2924.9,2924.6,2.21611521]
[1644743931325,1.4544048,2924.9,2924.6,3.51611521]
[1644743932125,1.0,2924.8,2924.6,3.50528]
[1644743932327,1.1987,2925.1,2924.6,3.51611521]
[1644743932625,1.0,2924.8,2924.6,3.51611521]
[1644743932823,3.3269,2925.2,2924.6,3.51611521]
[1644743933026,1.0,2924.8,2924.6,3.51611521]
[1644743933229,1.0,2924.8,2924.6,3.50528]
[1644743934677,1.0,2924.8,2924.6,3.51611528]
[1644743935677,1.0,2924.8,2924.6,3.50528]
[1644743935884,1.0,2924.8,2924.6,3.51611528]
[1644743936978,1.0,2924.8,2924.6,3.50528]
[1644743937219,1.0,2924.8,2924.6,3.51611528]
[1644743938126,1.0,2924.8,2924.6,3.50528]
[1644743938430,1.0,2924.8,2924.6,3.51611528]
[1644743939325,1.0,2924.8,2924.6,3.50528]
[1644743939532,1.0,2924.8,2924.6,3.51611528]
[1644743940428,1.0,2924.8,2924.6,3.50528]
[1644743940875,1.0,2924.8,2924.6,3.51611528]
[1644743941683,1.0,2924.8,2924.6,3.50528]
[1644743941881,1.0,2924.8,2924.6,3.51611528]
[1644743942883,1.0,2924.8,2924.6,3.50528]
[1644743943082,1.0,2924.8,2924.6,3.51611528]
[1644743943587,1.0,2924.8,2924.6,1.80683528]
[1644743943782,1.0,2924.8,2924.6,0.80683528]
[1644743943982,1.0,2924.8,2924.6,0.796]
[1644743944183,1.0,2924.8,2924.6,0.496]
[1644743944382,1.0,2924.8,2924.6,0.80683528]
[1644743944822,1.0,2924.8,2924.6,0.50683528]
[1644743945222,1.0,2924.8,2924.6,0.496]
[1644743945626,1.0,2924.8,2924.6,0.01083528]
[1644743946428,1.0,2924.8,2924.3,1.47209129]
[1644743946628,1.0,2924.5,2924.3,1.47209129]
[1644743946828,1.0,2924.5,2924.4,0.85481]
[1644743947936,1.01753083,2924.4,2924.3,0.01083564]
[1644743948133,4.66014132,2924.4,2924.3,0.01083564]
[1644743948771,4.66014132,2924.4,2923.8,0.00330166]
[1644743949168,4.66014132,2924.4,2924.2,0.01083579]
[1644743949370,3.30675895,2924.3,2924.2,0.01083579]
[1644743949974,3.30675895,2924.3,2924.0,0.00330166]
[1644743950375,1.0,2924.2,2924.1,0.01083593]
[1644743951178,1.0,2924.2,2924.0,0.00330166]
[1644743951578,1.0,2924.2,2924.0,0.01413774]
[1644743952253,0.99872731,2924.2,2924.0,0.01413774]
[1644743952454,0.99872731,2924.2,2924.0,0.00330166]
[1644743952655,0.99872731,2924.2,2924.0,0.01413781]
[1644743953656,0.99872731,2924.2,2924.0,0.00330166]
[1644743953857,0.99872731,2924.2,2924.0,0.01413781]
[1644743954163,3.38546818,2924.6,2924.0,0.01413781]
[1644743954356,0.9984,2924.2,2924.0,0.01413781]
[1644743954962,0.9984,2924.2,2924.0,0.00330166]
[1644743955165,0.9984,2924.2,2924.0,0.01413781]
[1644743956072,0.9984,2924.2,2924.0,0.00330166]
[1644743956272,0.9984,2924.2,2924.0,0.01413781]
[1644743957270,0.9984,2924.2,2924.0,0.00330166]
[1644743957471,0.9984,2924.2,2924.0,0.01413781]
[1644743958474,0.9984,2924.2,2924.0,0.00330166]
[1644743958673,0.9984,2924.2,2924.0,0.01413781]
[1644743959725,0.9984,2924.2,2924.0,0.00330166]
[1644743959924,0.9984,2924.2,2924.0,0.01413781]
[1644743960928,0.9984,2924.2,2924.0,0.00330166]
[1644743961128,0.9984,2924.2,2924.0,0.01413781]
[1644743961528,0.9984,2924.2,2924.0,0.01083615]
[1644743961729,0.9984,2924.2,2923.9,2.24072615]
[1644743962131,0.9984,2924.2,2923.9,2.41281744]
[1644743963469,0.9984,2924.2,2923.9,2.42365385]
[1644743964481,0.9984,2924.2,2923.9,2.41281744]
[1644743964677,0.9984,2924.2,2923.9,2.42365385]
[1644743965274,0.9984,2924.2,2924.0,0.1708]
[1644743965678,0.9984,2924.2,2924.0,1.1708]
[1644743965875,0.9984,2924.2,2924.0,0.1708]
[1644743967720,0.9984,2924.2,2923.9,2.73955396]
[1644743968131,0.9984,2924.2,2923.9,2.72871744]
[1644743968326,0.9984,2924.2,2923.9,2.73955385]
[1644743969327,0.9984,2924.2,2923.9,2.72871744]
[1644743971369,0.9984,2924.2,2923.9,2.55791744]
[1644743971567,1.45471591,2924.1,2923.9,2.55791744]
[1644743971769,0.9984,2924.2,2923.9,2.55791744]
[1644743971971,0.9984,2924.2,2923.9,2.56874912]
[1644743972175,1.4547146,2924.1,2923.9,2.56874912]
[1644743972574,0.9984,2924.2,2923.9,2.56874912]
[1644743972776,1.45471401,2924.1,2923.9,2.56874912]
[1644743972975,1.45471401,2924.1,2923.9,2.55791744]
[1644743973179,1.45471401,2924.1,2923.9,2.56874912]
[1644743974076,0.9984,2924.2,2923.9,2.55791744]
[1644743974275,0.9984,2924.2,2923.9,2.56874901]
[1644743975327,0.9984,2924.2,2923.9,2.55791744]
[1644743975527,0.9984,2924.2,2923.9,2.56874912]
[1644743975928,0.9976,2924.1,2923.9,2.56874912]
[1644743976530,0.9976,2924.1,2923.9,2.55791744]
[1644743976728,0.9976,2924.1,2923.9,2.56874901]
[1644743977330,0.9976,2924.1,2923.9,1.54166772]
[1644743977828,0.9976,2924.1,2923.9,1.23083615]
[1644743978027,0.9976,2924.1,2923.9,1.24166772]
[1644743978482,0.9976,2924.1,2923.9,0.01083157]
[1644743978879,0.9976,2924.1,2923.9,1.0]
[1644743979080,0.9976,2924.1,2923.9,0.01083157]
[1644743980085,0.9976,2924.1,2923.8,0.4708]
[1644743980283,0.9976,2924.1,2923.8,0.3]